bitfinex/quotes_BTCUSD_20251230
["timestamp","ask_amount","ask_price","bid_price","bid_amount"]
[1767105955513,0.00482437,88115.0,88100.0,6.888e-05]
[1767105955709,0.00482437,88115.0,88100.0,0.81140904]
[1767105955884,0.00482437,88115.0,88100.0,6.888e-05]
[1767105956323,0.00482437,88115.0,88100.0,0.81140904]
[1767105956565,0.00482437,88115.0,88100.0,0.55334995]
[1767105957363,0.00482437,88115.0,88100.0,6.888e-05]
[1767105957685,0.00482437,88115.0,88100.0,0.55334995]
[1767105958157,0.00482437,88115.0,88100.0,6.888e-05]
[1767105959738,0.00482437,88115.0,88100.0,0.55334995]
[1767105960134,1.29245437,88115.0,88100.0,0.55334995]
[1767105960533,1.29245437,88115.0,88088.0,58.50901393]
[1767105960534,0.001099,88100.0,88088.0,58.50901393]
[1767105960739,0.01144,88099.0,88088.0,58.50901393]
[1767105961795,0.01144,88099.0,88088.0,58.50846493]
[1767105964026,0.02194523,88098.0,88088.0,58.50846493]
[1767105964251,0.01144,88099.0,88088.0,58.46510484]
[1767105964252,1.15848,88092.0,88088.0,58.46510484]
[1767105964429,0.01135163,88093.0,88088.0,58.46510484]
[1767105964430,1.15848,88090.0,88088.0,58.46510484]
[1767105966762,1.14719915,88090.0,88088.0,58.46510484]
[1767105966967,1.13495791,88089.0,88088.0,58.46510484]
[1767105967140,7.694e-05,88100.0,88090.0,0.000549]
[1767105967345,0.05684,88096.0,88090.0,0.000549]
[1767105967544,0.05684,88095.0,88090.0,0.000549]
[1767105967773,0.05684,88095.0,88088.0,58.46510484]
[1767105967974,7.694e-05,88100.0,88088.0,58.46510484]
[1767105968173,0.0454,88099.0,88088.0,58.46510484]
[1767105968353,0.06810596,88098.0,88088.0,58.46510484]
[1767105968722,0.05676013,88090.0,88088.0,57.17609484]
[1767105968877,0.01144,88089.0,88088.0,56.52744737]
[1767105969035,0.01144,88089.0,88088.0,48.99727909]
[1767105969233,0.02344,88089.0,88088.0,48.91124318]
[1767105969444,0.04481286,88089.0,88088.0,48.81464277]
[1767105969656,0.04481286,88089.0,88088.0,48.2625333]
[1767105969870,0.04481286,88089.0,88088.0,48.16591138]
[1767105969871,0.03585963,88089.0,88088.0,48.16591138]
[1767105970071,0.03585963,88089.0,88088.0,48.13180953]
[1767105970267,0.05688,88089.0,88088.0,47.51759202]
[1767105970476,0.08129344,88089.0,88088.0,47.48349017]
[1767105970684,0.08129344,88089.0,88088.0,47.38686825]
[1767105970685,0.08007384,88089.0,88088.0,47.38686825]
[1767105970898,0.01673409,88089.0,88088.0,47.3527664]
[1767105971096,0.05688,88089.0,88088.0,47.3527664]
[1767105971412,0.05688,88089.0,88088.0,46.7870387]
[1767105971623,0.05688,88089.0,88088.0,46.19163437]
[1767105971832,0.05688,88089.0,88088.0,46.08504641]
[1767105972167,0.05688,88089.0,88088.0,45.46441826]
[1767105972320,0.05688,88089.0,88088.0,45.43031641]
[1767105972528,0.05688,88089.0,88088.0,44.72761711]
[1767105972722,0.05688,88089.0,88088.0,42.60969145]
[1767105972921,0.05459802,88089.0,88088.0,42.06648978]
[1767105973131,0.05459802,88089.0,88088.0,39.92636817]
[1767105973132,0.36068871,88089.0,88088.0,39.92636817]
[1767105973330,0.36068871,88089.0,88088.0,38.50258793]
[1767105973694,0.36068871,88089.0,88088.0,32.9744905]
[1767105973902,0.36068871,88089.0,88088.0,31.31661039]
[1767105974121,0.36068871,88089.0,88088.0,30.85980148]
[1767105974350,0.2609,88089.0,88088.0,30.7631727]
[1767105974581,0.30578,88089.0,88088.0,30.37621944]
[1767105974790,0.30578,88089.0,88088.0,28.31069057]
[1767105975010,0.30578,88089.0,88088.0,27.65827464]
[1767105975222,0.30578,88089.0,88088.0,27.20432663]
[1767105975435,0.30578,88089.0,88088.0,26.69153918]
[1767105975666,0.38808889,88089.0,88088.0,26.15139032]
[1767105975876,0.38808889,88089.0,88088.0,24.33603752]
[1767105975877,0.31778,88089.0,88088.0,24.33603752]
[1767105976090,0.31778,88089.0,88088.0,23.71599502]
[1767105976298,0.31778,88089.0,88088.0,22.93668493]
[1767105976587,0.31778,88089.0,88088.0,21.92592093]
[1767105976783,0.31778,88089.0,88088.0,19.2352403]
[1767105976784,0.14936416,88089.0,88088.0,19.2352403]
[1767105977010,0.21294325,88089.0,88088.0,13.49323268]
[1767105977163,0.21294325,88089.0,88088.0,12.8341064]
[1767105977364,0.15606325,88089.0,88088.0,12.18737305]
[1767105977564,0.15606325,88089.0,88088.0,11.47292526]
[1767105977565,0.21294325,88089.0,88088.0,11.47292526]
[1767105977767,0.21294325,88089.0,88088.0,9.57080425]
[1767105977988,0.21294325,88089.0,88088.0,9.20344878]
[1767105978305,0.21294325,88089.0,88088.0,8.50576591]
[1767105978527,0.09248416,88089.0,88088.0,7.83958306]
[1767105978735,0.14936416,88089.0,88088.0,7.39417347]
[1767105978875,0.13371944,88089.0,88088.0,7.12703619]
[1767105979079,0.01056437,88089.0,88088.0,6.97926215]
[1767105979301,0.06744437,88089.0,88088.0,6.94515499]
[1767105979505,0.12538771,88089.0,88088.0,6.89626049]
[1767105979686,0.12538771,88089.0,88088.0,6.86214943]
[1767105979881,0.12538771,88089.0,88088.0,6.28962116]
[1767105980124,0.12538771,88089.0,88088.0,6.0076076]
[1767105980328,0.12538771,88089.0,88088.0,5.78179315]
[1767105980508,0.12538771,88089.0,88088.0,5.30685671]
[1767105980721,0.12538771,88089.0,88088.0,4.94504257]
[1767105981044,0.13738771,88089.0,88088.0,4.48657266]
[1767105981242,0.13738771,88089.0,88088.0,3.91037031]
[1767105981445,0.07553298,88089.0,88088.0,3.80372229]
[1767105981660,0.07553298,88089.0,88088.0,3.76961123]
[1767105981661,0.07121315,88089.0,88088.0,3.76961123]
[1767105981808,0.07121315,88089.0,88088.0,3.75852363]
[1767105982345,0.07121315,88089.0,88088.0,3.62093623]
[1767105982504,0.07121315,88089.0,88088.0,3.620656]
[1767105982714,0.01433315,88089.0,88088.0,3.620656]
[1767105982917,0.07125315,88089.0,88088.0,3.620656]
[1767105983221,0.09557106,88089.0,88088.0,3.620656]
[1767105983398,0.09557106,88089.0,88088.0,3.62037576]
[1767105983596,0.09557106,88089.0,88088.0,3.50462296]
[1767105983852,0.09420161,88089.0,88088.0,3.33411875]
[1767105984189,0.09420161,88089.0,88088.0,103.32672745]
[1767105984579,0.09420161,88089.0,88088.0,103.19173881]
[1767105984779,0.09323791,88089.0,88088.0,103.14605034]
[1767105985197,0.09323791,88089.0,88088.0,101.43065034]
[1767105985346,0.0807001,88089.0,88088.0,101.43065034]
[1767105985574,0.04434152,88089.0,88088.0,101.43037009]
[1767105985790,7.694e-05,88100.0,88088.0,101.43037009]
[1767105985791,7.694e-05,88100.0,88088.0,101.14515475]
[1767105985991,7.694e-05,88100.0,88088.0,100.97332862]
[1767105985992,0.04544,88094.0,88088.0,100.97332862]
[1767105986195,0.04489,88094.0,88088.0,100.97332862]
[1767105987618,0.012,88093.0,88088.0,100.97332862]
[1767105987931,0.012,88091.0,88088.0,100.68444054]
[1767105988147,0.02335189,88091.0,88088.0,100.44232129]
[1767105988301,0.02335189,88091.0,88088.0,100.3854872]
[1767105988502,0.012,88091.0,88088.0,100.01189685]
[1767105988722,0.02335189,88091.0,88088.0,99.87488908]
[1767105988924,0.012,88091.0,88088.0,99.7612209]
[1767105989124,0.012,88091.0,88088.0,99.53388454]
[1767105989324,0.012,88091.0,88088.0,99.36338227]
[1767105989488,0.012,88091.0,88088.0,99.19288]
[1767105989489,0.02335189,88091.0,88088.0,99.19288]
[1767105989685,0.02335189,88091.0,88088.0,99.07761182]
[1767105989929,0.012,88089.0,88088.0,98.94098364]
[1767105990105,0.012,88089.0,88088.0,98.54785742]
[1767105990307,0.05265163,88089.0,88088.0,98.19572298]
[1767105990544,0.06892,88089.0,88088.0,97.90585877]
[1767105990756,0.0994306,88089.0,88088.0,97.79219059]
[1767105990941,0.06892,88089.0,88088.0,97.62168832]
[1767105991099,0.06892,88089.0,88088.0,97.50802014]
[1767105991303,0.06892,88089.0,88088.0,97.28068378]
[1767105991490,0.06892,88089.0,88088.0,97.03552225]
[1767105991717,0.06892,88089.0,88088.0,96.91076701]
[1767105992365,0.08541,88089.0,88088.0,96.90962826]
[1767105992773,0.01553124,88089.0,88088.0,96.90962826]
[1767105992951,0.07245124,88089.0,88088.0,96.90962826]
[1767105994189,0.08089636,88089.0,88088.0,96.89484705]
[1767105994477,0.07245124,88089.0,88088.0,96.89484705]
[1767105995855,0.08306087,88089.0,88088.0,96.89437435]
[1767105996607,0.20286087,88089.0,88088.0,96.89390166]
[1767105996810,0.08306087,88089.0,88088.0,93.55930166]
[1767105997406,0.08306087,88089.0,88088.0,93.55882895]
[1767105998162,0.08306087,88089.0,88088.0,93.10508664]
[1767105998317,0.08306087,88089.0,88088.0,92.7505199]
[1767105998515,0.08306087,88089.0,88088.0,92.57323653]
[1767105999154,0.08306087,88089.0,88088.0,92.56584548]
[1767106000280,0.08306087,88089.0,88088.0,92.55106347]
[1767106000828,0.02614087,88089.0,88088.0,92.55106347]
[1767106001031,0.08302087,88089.0,88088.0,92.55106347]
[1767106001985,0.08302087,88089.0,88088.0,92.53997784]
[1767106003299,0.01060963,88089.0,88088.0,92.53997784]
[1767106003510,0.02204963,88089.0,88088.0,92.53997784]
[1767106003708,0.02409963,88089.0,88088.0,92.53137784]
[1767106005000,0.02409963,88089.0,88088.0,92.52537784]
[1767106005407,0.02411702,88089.0,88088.0,92.52537784]
[1767106005754,0.02206702,88089.0,88088.0,92.52537784]
[1767106008186,0.02001278,88089.0,88088.0,92.52537784]
[1767106008329,0.04584,88116.0,88088.0,92.52537784]
[1767106008512,0.04584,88116.0,88103.0,0.49605639]
[1767106008513,0.01144,88112.0,88103.0,0.49605639]
[1767106009328,0.01144,88112.0,88090.0,0.55328107]
[1767106009813,0.01144,88112.0,88088.0,92.52537784]
[1767106009814,0.01144,88112.0,88100.0,0.55328107]
[1767106010552,0.0004,88123.0,88100.0,0.56472107]
[1767106010711,0.01144,88122.0,88113.0,0.55328107]
[1767106011238,0.00035771,88123.0,88113.0,0.55328107]
[1767106011810,0.00035771,88123.0,88096.0,1.49736125]
[1767106011811,0.00035771,88123.0,88103.0,0.01135035]
[1767106012007,0.00040632,88123.0,88113.0,0.55328107]
[1767106012214,0.00040632,88123.0,88113.0,0.53048107]
[1767106012408,0.00040632,88123.0,88113.0,0.53618107]
[1767106012686,0.00040632,88123.0,88107.0,0.01144]
[1767106012829,0.00040632,88123.0,88113.0,0.53618107]
[1767106013166,0.00040632,88123.0,88113.0,0.53048107]
[1767106013371,0.00040632,88123.0,88113.0,1.10656214]
[1767106013785,0.00040632,88123.0,88113.0,0.55328107]
[1767106014513,0.011028,88131.0,88113.0,0.55328107]
[1767106014762,0.0001698,88164.0,88113.0,0.55328107]
[1767106014764,0.04056561,88196.0,88126.0,0.00057612]
[1767106014997,0.04056561,88196.0,88123.0,0.00081264]
[1767106014998,0.0002,88212.0,88189.0,0.01133928]
[1767106014999,0.02723342,88192.0,88189.0,0.01133928]
[1767106015208,0.0002447,88210.0,88196.0,0.04056561]
[1767106015209,0.00591868,88200.0,88196.0,0.04056561]
[1767106015414,0.05692,88220.0,88196.0,0.04056561]
[1767106015415,0.01148,88227.0,88205.0,0.02723342]
[1767106015613,0.01148,88227.0,88197.0,0.05597236]
[1767106015614,0.02041578,88221.0,88211.0,0.0333968]
[1767106015823,0.02723342,88220.0,88211.0,0.55328107]
[1767106016030,0.02723342,88234.0,88216.0,0.01133581]
[1767106016031,0.02723342,88233.0,88216.0,0.01133581]
[1767106016231,0.02723342,88233.0,88223.0,0.55328107]
[1767106016374,0.0002,88256.0,88223.0,0.55328107]
[1767106016375,0.01148,88246.0,88223.0,0.55328107]
[1767106016574,0.01148,88246.0,88217.0,0.01133568]
[1767106016575,0.04534351,88243.0,88236.0,0.55328107]
[1767106017085,0.04534351,88243.0,88218.0,0.05667742]
[1767106017086,0.01148,88245.0,88231.0,0.01133388]
[1767106017346,0.01148,88245.0,88230.0,0.01133401]
[1767106017347,0.01148,88245.0,88235.0,1.10656214]
[1767106017538,0.00010703,88245.0,88235.0,1.10656214]
[1767106017917,6.491e-05,88245.0,88235.0,1.10656214]
[1767106018147,0.00426491,88251.0,88235.0,1.10656214]
[1767106018360,0.00426491,88251.0,88240.0,0.55328107]
[1767106018554,0.0004,88255.0,88235.0,0.00010703]
[1767106018555,0.01148,88252.0,88235.0,0.00010703]
[1767106018770,0.01148,88252.0,88242.0,0.80887859]
[1767106018953,0.000549,88242.0,88235.0,0.00010703]
[1767106019155,0.000549,88242.0,88230.0,0.80849801]
[1767106019388,0.0002,88240.0,88230.0,0.80849801]
[1767106019715,0.00065593,88242.0,88230.0,0.80849801]
[1767106019716,0.00010693,88242.0,88230.0,0.80849801]
[1767106019932,0.00010693,88242.0,88232.0,0.80887859]
[1767106020112,0.0004,88255.0,88231.0,0.01133388]
[1767106020113,0.00828,88248.0,88231.0,0.01133388]
[1767106020256,0.00828,88248.0,88238.0,0.80887859]
[1767106020458,0.0004,88255.0,88238.0,0.80887859]
[1767106020657,0.0004,88255.0,88231.0,0.01144081]
[1767106020658,0.01144,88254.0,88231.0,0.00010693]
[1767106020859,0.01144,88254.0,88218.0,0.01144]
[1767106021101,0.01179662,88254.0,88240.0,0.78607859]
[1767106021308,0.01179662,88254.0,88218.0,0.00595503]
[1767106021309,0.000549,88240.0,88218.0,0.00019124]
[1767106021466,0.000549,88240.0,88230.0,0.80887859]
[1767106021663,0.01179662,88254.0,88230.0,0.80887859]
[1767106021946,0.01179662,88254.0,88218.0,0.01152679]
[1767106022265,0.01179662,88254.0,88230.0,0.80878267]
[1767106022552,0.01179662,88254.0,88210.0,0.05123658]
[1767106022553,0.01179662,88254.0,88212.0,0.01133632]
[1767106023082,0.01179662,88254.0,88210.0,0.06267658]
[1767106023083,0.01179662,88254.0,88230.0,0.80887859]
[1767106023261,0.01179662,88254.0,88214.0,0.01133606]
[1767106023432,0.01179662,88254.0,88230.0,0.80317859]
[1767106023639,0.05684,88253.0,88230.0,0.80887859]
[1767106023852,0.01144,88252.0,88226.0,0.01133452]
[1767106024001,0.05684,88252.0,88243.0,0.80887859]
[1767106024218,0.05684,88252.0,88222.0,1.37857]
[1767106024449,0.000549,88243.0,88230.0,0.80887859]
[1767106024660,0.000549,88243.0,88209.0,0.02946867]
[1767106024661,0.05684,88252.0,88210.0,0.0002]
[1767106024662,0.01813196,88235.0,88210.0,0.0002]
[1767106024860,0.01813196,88235.0,88170.0,0.05635597]
[1767106024861,0.01813196,88211.0,88200.0,0.80887859]
[1767106025098,0.01144,88212.0,88201.0,0.80887859]
[1767106025312,0.01144,88212.0,88200.0,0.0002]
[1767106025468,0.01084813,88212.0,88202.0,0.80887859]
[1767106025672,0.01084813,88212.0,88200.0,0.80907859]
[1767106025882,0.01813196,88210.0,88200.0,0.80907859]
[1767106026080,0.01813196,88210.0,88200.0,0.0002]
[1767106026296,0.01813196,88210.0,88182.0,0.0003832]
[1767106026496,0.01813196,88210.0,88190.0,0.80887859]
[1767106026708,0.01813196,88210.0,88177.0,1.38431204]
[1767106026709,0.0002,88192.0,88177.0,1.38431204]
[1767106026917,0.0002,88192.0,88182.0,0.80887859]
[1767106027147,0.0002,88192.0,88185.0,0.01133979]
[1767106027325,0.01144,88203.0,88200.0,0.80887859]
[1767106027539,0.01823885,88210.0,88193.0,0.80887859]
[1767106027743,0.01823885,88210.0,88190.0,0.01133915]
[1767106027744,0.01144,88204.0,88200.0,0.80887859]
[1767106027946,0.01144,88204.0,88186.0,0.05669805]
[1767106027947,0.01148,88205.0,88194.0,0.80887859]
[1767106028320,0.01148,88204.0,88194.0,0.80887859]
[1767106028521,0.01148,88204.0,88172.0,0.0002]
[1767106028522,0.00725219,88204.0,88172.0,0.0002]
[1767106028720,0.00725219,88204.0,88180.0,0.80887859]
[1767106028939,0.00745219,88204.0,88180.0,0.80842859]
[1767106029087,0.04414,88203.0,88180.0,0.80887859]
[1767106029286,0.04414,88203.0,88172.0,0.0002]
[1767106029508,0.04414,88203.0,88180.0,0.80887859]
[1767106029708,0.0002,88204.0,88172.0,0.0002]
[1767106029963,0.05684,88203.0,88190.0,0.78499141]
[1767106030138,0.05684,88203.0,88168.0,0.01134198]
[1767106030340,0.05684,88203.0,88164.0,0.01134249]
[1767106030341,0.05684,88202.0,88173.0,0.01124543]
[1767106030541,0.05684,88202.0,88174.0,0.01134121]
[1767106030742,0.0002,88204.0,88171.0,1.37287]
[1767106030743,0.01148,88201.0,88171.0,1.36707408]
[1767106030943,0.05684,88201.0,88190.0,0.78607859]
[1767106031259,0.05684,88201.0,88171.0,1.37841567]
[1767106031260,0.05684,88201.0,88171.0,1.36130627]
[1767106031490,0.00024367,88201.0,88165.0,0.0567116]
[1767106031622,0.0002,88204.0,88190.0,0.80999734]
[1767106031623,0.01148,88200.0,88190.0,0.80999734]
[1767106031826,0.04556,88204.0,88190.0,0.80999734]
[1767106031827,0.01144,88199.0,88190.0,0.80954704]
[1767106032022,0.01089,88199.0,88190.0,0.80954704]
[1767106032241,0.01813267,88203.0,88190.0,0.80954704]
[1767106032851,2.67e-06,88203.0,88190.0,0.80954704]
[1767106033168,2.67e-06,88203.0,88193.0,0.80999734]
[1767106033812,2.67e-06,88203.0,88122.0,0.01147593]
[1767106033813,0.000549,88193.0,88163.0,1.37857]
[1767106034170,0.01148,88195.0,88170.0,0.80999734]
[1767106034547,0.01148,88195.0,88163.0,1.37857]
[1767106034899,0.01148,88195.0,88162.0,0.0002]
[1767106034900,0.01813125,88192.0,88162.0,0.0002]
[1767106035873,0.01813125,88192.0,88170.0,0.80999734]
[1767106036258,0.01813125,88192.0,88162.0,0.0002]
[1767106036259,0.000549,88170.0,88162.0,0.0002]
[1767106036462,0.01148,88174.0,88162.0,0.0002]
[1767106037507,0.01158681,88174.0,88159.0,3.2e-06]
[1767106037721,0.09576681,88174.0,88159.0,3.2e-06]
[1767106037922,0.0002,88169.0,88159.0,3.2e-06]
[1767106038126,0.0002,88169.0,88159.0,0.81000054]
[1767106038442,0.01158681,88174.0,88160.0,1.46038106]
[1767106038443,0.00010681,88174.0,88160.0,1.46038106]
[1767106038608,0.05684,88185.0,88160.0,1.44387]
[1767106038810,0.08418,88210.0,88175.0,0.80999734]
[1767106038811,0.0002,88184.0,88175.0,0.80999734]
[1767106039031,0.0002,88184.0,88164.0,0.01154249]
[1767106039032,0.01148,88183.0,88174.0,0.80999734]
[1767106039438,0.0002,88184.0,88170.0,0.80999734]
[1767106039645,0.0002,88184.0,88164.0,0.0002]
[1767106039646,0.01148,88182.0,88164.0,0.0002]
[1767106039852,0.01148,88182.0,88170.0,0.80999734]
[1767106040029,0.01148,88181.0,88170.0,0.80999734]
[1767106041049,0.0002,88184.0,88170.0,0.80999734]
[1767106041263,0.01148,88180.0,88170.0,0.80999734]
[1767106041465,0.01148,88180.0,88164.0,0.0002]
[1767106041634,0.02864637,88179.0,88164.0,0.0002]
[1767106041830,0.01051512,88178.0,88164.0,0.0002]
[1767106042042,0.01051512,88178.0,88160.0,0.81010415]
[1767106042043,0.01051512,88178.0,88160.0,0.00010681]
[1767106042467,0.01051512,88178.0,88160.0,0.81010415]
[1767106043682,0.01148,88180.0,88160.0,0.81010415]
[1767106043683,0.01051512,88177.0,88160.0,0.81010415]
[1767106043849,0.01051512,88176.0,88160.0,0.81010415]
[1767106044073,0.01051512,88175.0,88160.0,0.81010415]
[1767106044283,0.02864637,88174.0,88160.0,0.81010415]
[1767106044495,0.01051512,88173.0,88160.0,0.81010415]
[1767106044740,0.01051512,88173.0,88160.0,0.00010681]
[1767106044974,0.01051512,88173.0,88160.0,0.81010415]
[1767106045895,0.01051512,88173.0,88136.0,0.0003832]
[1767106045896,0.000899,88160.0,88136.0,0.0003832]
[1767106046045,0.01071512,88159.0,88140.0,0.80999734]
[1767106046389,0.01071512,88159.0,88150.0,0.80999734]
[1767106046390,0.00097999,88156.0,88150.0,0.80999734]
[1767106046549,0.01051512,88155.0,88150.0,0.80999734]
[1767106046748,0.00097999,88156.0,88150.0,0.80999734]
[1767106047342,0.01148,88155.0,88150.0,0.80999734]
[1767106047582,0.00097999,88156.0,88150.0,0.80999734]
[1767106047783,0.02961125,88154.0,88150.0,0.80999734]
[1767106048113,0.02961125,88154.0,88139.0,0.0002]
[1767106048114,0.02961125,88154.0,88146.0,0.80999734]
[1767106048420,0.02961125,88154.0,88139.0,0.0002]
[1767106048421,0.000549,88150.0,88140.0,0.80999734]
[1767106048697,0.02961125,88154.0,88140.0,0.80999734]
[1767106050192,0.02961125,88154.0,88139.0,0.0002]
[1767106050427,0.02961125,88154.0,88140.0,0.80999734]
[1767106050819,0.02961125,88154.0,88139.0,0.0002]
[1767106051019,0.02961125,88154.0,88140.0,0.80999734]
[1767106051995,0.01813125,88154.0,88140.0,0.80999734]
[1767106052125,0.05688,88153.0,88140.0,0.80999734]
[1767106052769,0.01813125,88154.0,88140.0,0.80999734]
[1767106052991,0.01813125,88154.0,88153.0,0.000549]
[1767106053198,0.07501125,88154.0,88140.0,0.80999734]
[1767106053402,0.01813125,88154.0,88140.0,0.80999734]
[1767106053563,0.01148,88153.0,88140.0,0.80999734]
[1767106053767,0.01813125,88154.0,88148.0,0.01134455]
[1767106053768,1.25e-06,88154.0,88148.0,0.01134455]
[1767106053971,0.01148,88177.0,88160.0,1.44387]
[1767106054164,0.0002,88170.0,88167.0,0.80999734]
[1767106054388,0.0002,88170.0,88160.0,0.80999734]
[1767106055703,0.0002,88170.0,88160.0,1.61999468]
[1767106056060,0.0002,88184.0,88160.0,1.61999468]
[1767106056061,0.01148,88183.0,88160.0,3.06386468]
[1767106056234,0.01148,88183.0,88173.0,0.80999734]
[1767106056445,0.01148,88183.0,88173.0,0.79892586]
[1767106057982,0.000549,88173.0,88170.0,0.80999734]
[1767106058203,0.0002,88184.0,88166.0,0.01134224]
[1767106058392,0.0002,88184.0,88161.0,0.04535327]
[1767106058393,0.01148,88199.0,88173.0,0.80999734]
[1767106058597,0.01148,88199.0,88167.0,0.01148]
[1767106058598,0.01158701,88199.0,88190.0,0.80999734]
[1767106058771,0.0002,88194.0,88190.0,0.80999734]
[1767106058951,0.0002,88194.0,88184.0,0.80999734]
[1767106058952,0.010384,88193.0,88184.0,0.80999734]
[1767106059293,0.0002,88194.0,88184.0,0.80999734]
[1767106059502,0.0002,88194.0,88184.0,0.80964669]
[1767106060572,0.0002,88194.0,88179.0,0.01148]
[1767106060772,0.0002,88194.0,88184.0,0.80999734]
[1767106062584,0.01158701,88199.0,88184.0,0.80999734]
[1767106062585,0.00010701,88199.0,88184.0,0.80999734]
[1767106062784,0.01158701,88199.0,88184.0,0.80999734]
[1767106063198,0.04064445,88230.0,88184.0,0.80999734]
[1767106063199,0.15020445,88233.0,88184.0,0.80999734]
[1767106063398,0.0454,88224.0,88210.0,0.80999734]
[1767106063598,0.01148,88219.0,88210.0,0.80999734]
[1767106063813,0.01148,88219.0,88190.0,0.80999734]
[1767106064010,0.01148,88219.0,88189.0,0.0002]
[1767106064011,0.01148,88219.0,88200.0,0.80999734]
[1767106064419,0.01148,88219.0,88189.0,0.0002]
[1767106064629,0.01148,88219.0,88187.0,0.01148]
[1767106064630,0.01148,88219.0,88187.0,0.00590017]
[1767106064827,0.01148,88219.0,88190.0,0.80999734]
[1767106065870,0.01148,88219.0,88187.0,0.00020017]
[1767106066065,0.01148,88219.0,88200.0,0.80429734]
[1767106066283,0.01148,88219.0,88184.0,1.44408947]
[1767106066504,0.01148,88219.0,88190.0,0.80999734]
[1767106067233,0.01148,88219.0,88184.0,0.00010701]
[1767106067234,0.1323,88219.0,88184.0,0.00010701]
[1767106067463,0.01813196,88235.0,88200.0,0.80999734]
[1767106067464,0.05684,88218.0,88200.0,0.80999734]
[1767106067667,0.17766,88218.0,88190.0,0.80999734]
[1767106067827,0.12082,88217.0,88190.0,0.80999734]
[1767106068189,0.12082,88217.0,88184.0,0.00010701]
[1767106068409,0.12082,88217.0,88174.0,0.0002]
[1767106068628,0.12092697,88217.0,88174.0,0.0002]
[1767106069030,0.12092697,88217.0,88176.0,0.00055982]
[1767106070174,0.12092697,88217.0,88190.0,0.01010402]
[1767106070376,0.12092697,88217.0,88170.0,1.44445]
[1767106070377,0.12092697,88217.0,88170.0,0.01148]
[1767106070577,0.0002,88200.0,88180.0,0.0002]
[1767106070781,0.0002,88200.0,88159.0,0.05671495]
[1767106070782,0.13714,88199.0,88158.0,0.01148]
[1767106070980,0.05593063,88198.0,88158.0,0.01148]
[1767106071331,0.01057063,88197.0,88158.0,0.01148]
[1767106072520,0.01057063,88197.0,88159.0,0.01134314]
[1767106072852,0.01057063,88197.0,88158.0,0.01148]
[1767106073798,0.13722063,88197.0,88158.0,0.01148]
[1767106073998,0.01057063,88196.0,88158.0,0.01148]
[1767106074234,0.02999669,88196.0,88158.0,0.01148]
[1767106074544,0.01057194,88195.0,88158.0,0.01148]
[1767106074703,0.01057194,88194.0,88158.0,0.01148]
[1767106074947,0.04536,88198.0,88158.0,0.01148]
[1767106074948,0.13722194,88193.0,88158.0,0.01148]
[1767106075146,0.01057194,88192.0,88158.0,0.01148]
[1767106075664,0.13722194,88192.0,88158.0,0.01148]
[1767106075866,0.12665,88190.0,88158.0,0.01148]
[1767106076068,0.12665,88188.0,88150.0,0.0002]
[1767106076394,0.12665,88186.0,88150.0,0.0002]
[1767106076584,0.01057194,88185.0,88150.0,0.0002]
[1767106076788,0.12665,88184.0,88150.0,0.0002]
[1767106076945,0.01057194,88183.0,88150.0,0.0005569]
[1767106077352,0.01057194,88183.0,88170.0,0.80999734]
[1767106077353,0.00947294,88183.0,88170.0,0.80999734]
[1767106077554,0.00947294,88183.0,88158.0,0.04535327]
[1767106077555,0.01144,88185.0,88160.0,0.80999734]
[1767106077936,0.01144,88185.0,88158.0,0.05679327]
[1767106078574,0.01144,88185.0,88160.0,0.01134301]
[1767106078771,0.01144,88185.0,88158.0,0.05679327]
[1767106078971,0.01144,88185.0,88161.0,0.01134288]
[1767106079205,0.01144,88185.0,88161.0,1.47334]
[1767106079405,0.01144,88185.0,88165.0,0.01134236]
[1767106079583,0.01144,88185.0,88163.0,0.01134262]
[1767106079923,0.01144,88185.0,88161.0,1.47334]
[1767106080825,0.01144,88185.0,88158.0,0.01144]
[1767106081027,0.01144,88185.0,88150.0,0.0119969]
[1767106081249,0.01144,88185.0,88151.0,0.01134417]
[1767106081452,0.01144,88185.0,88150.0,0.5645878]
[1767106081610,0.01144,88185.0,88150.0,0.0119969]
[1767106081813,0.13809,88185.0,88150.0,0.0119969]
[1767106082817,0.13809,88185.0,88150.0,0.0005569]
[1767106083802,0.12665,88179.0,88150.0,0.0005569]
[1767106083987,0.12665,88177.0,88150.0,0.0005569]
[1767106084132,0.12665,88175.0,88150.0,0.0005569]
[1767106084332,0.12665,88173.0,88150.0,0.0005569]
[1767106085304,0.04064445,88183.0,88150.0,0.0005569]
[1767106085305,0.0304473,88180.0,88150.0,0.5531478]
[1767106085433,0.04064445,88184.0,88150.0,0.5531478]
[1767106085434,0.0568,88179.0,88150.0,0.5531478]
[1767106085640,0.0568,88179.0,88150.0,0.0005569]
[1767106085847,0.0568,88179.0,88132.0,1.47334]
[1767106085848,0.12665,88176.0,88132.0,1.47334]
[1767106086068,0.12700662,88176.0,88132.0,1.47129887]
[1767106086302,0.0002,88142.0,88132.0,1.48264548]
[1767106086463,0.01148,88154.0,88134.0,0.01134635]
[1767106086830,0.01148,88154.0,88132.0,1.47129887]
[1767106087456,0.0118364,88154.0,88132.0,1.47129887]
[1767106088223,0.0003564,88154.0,88140.0,0.5525909]
[1767106088397,0.0003564,88154.0,88130.0,0.01144]
[1767106089307,0.0003564,88154.0,88132.0,1.48264548]
[1767106089507,0.0003564,88154.0,88132.0,1.53937834]
[1767106089841,0.0003564,88154.0,88121.0,0.04024613]
[1767106089842,0.0003564,88154.0,88125.0,0.01134751]
[1767106090039,0.0003564,88154.0,88134.0,0.05673135]
[1767106090214,0.0003564,88154.0,88140.0,0.5525909]
[1767106090415,0.0003564,88154.0,88134.0,1.47334]
[1767106090640,0.0003564,88154.0,88135.0,0.05673115]
[1767106090941,0.0003564,88154.0,88136.0,0.0113461]
[1767106091146,0.0003564,88154.0,88138.0,0.01134584]
[1767106091292,0.0003564,88154.0,88138.0,1.47334]
[1767106092315,0.0003564,88154.0,88144.0,0.01134507]
[1767106092528,0.01144,88170.0,88145.0,0.01134494]
[1767106092746,0.0002,88164.0,88150.0,0.5525909]
[1767106092950,0.0002,88164.0,88152.0,1.48468404]
[1767106093148,0.06088571,88204.0,88152.0,1.48468404]
[1767106093149,0.01144,88185.0,88156.0,0.01134352]
[1767106093383,0.01144,88185.0,88155.0,0.01148]
[1767106093587,0.03120705,88200.0,88166.0,0.01134224]
[1767106093832,0.03120705,88200.0,88155.0,0.05683327]
[1767106093833,0.01058696,88199.0,88171.0,1.47334]
[1767106094203,0.01058696,88198.0,88171.0,1.47334]
[1767106094414,0.06746696,88197.0,88171.0,1.47334]
[1767106094633,0.01058696,88196.0,88171.0,1.47334]
[1767106094977,0.02206696,88195.0,88171.0,1.47334]